{"text_format":"1","workbook":"xlsx","n_sheets":4,"sheets":["Sección A","Sección B","Sección C","Sección D"],"not_rendered":{"charts":0,"images":0,"macros":1,"external_links":0,"defined_names":3,"comments":0,"pivot_tables":0},"unopened":[],"bounds":{"document_bytes":16777216,"sheet_cells":100000,"rows_first":2000,"rows_last":500,"rows_between":2000,"halvings":0,"cell_chars":16384,"cell_head_chars":4096},"cells_cut":0,"cells_raw":0,"read":"whole","date_system":"1900"}

{"sheet":"Sección A","index":0,"n_rows":26,"n_cols":6,"rows_kept":26,"cut":false,"hidden":false,"merged":[]}
[null,"Manual para la Gestión Integral de Bifenilos Policlorados - PCB"]
[null,"N° 3. Muestreo, toma de muestras, análisis e identificación de equipos y desechos contemplados en la normativa ambiental de PCB"]
[null,"Anexo 1. PROCEDIMIENTO PARA MUESTREO ESTADÍSTICO DE EQUIPOS"]
[]
[null," Identifique las  características de los equipos"]
[]
[null,"Tabla 1 de ejemplo (Características de los equipos)"]
[]
[]
[null,"Código identificación","Fabricante","Año de fabricación","Estado","Números aleatorios"]
[null,"TR-049","E",1964,"Uso"]
[null,"TR-102","E",1983,"Desuso"]
[null,"TR-054","E",1985,"Desuso"]
[null,"TR-057","E",1975,"Uso "]
[null,"TR-052","E",1995,"Desecho"]
[null,"TR-050","E",2010,"Desecho"]
[null,"…","…","…","…","…"]
[null,"…","…","…","…","…"]
[]
[]
[null,"Por favor llene la tabla 1 con la información de su empresa"]
[]
[]
[null,"Tabla 1: Características de los equipos"]
[]
[null,"Código identificación","Fabricante","Año de fabricación","Estado","Números aleatorios"]

{"sheet":"Sección B","index":1,"n_rows":28,"n_cols":5,"rows_kept":28,"cut":false,"hidden":false,"merged":[]}
[null,"Manual para la Gestión Integral de Bifenilos Policlorados - PCB"]
[null,"N° 3. Muestreo, toma de muestras, análisis e identificación de equipos y desechos contemplados en la normativa ambiental de PCB"]
[null,"Anexo 1. PROCEDIMIENTO PARA MUESTREO ESTADÍSTICO DE EQUIPOS"]
[]
[null,"Realice un listado de estratos"]
[]
[null,"Tabla 2 de ejemplo (Listado de estratos)"]
[]
[]
[null,"Fabricante","Año de fabricación","Cantidad de equipos en uso y en desuso","Cantidad de equipos en desecho"]
[null,"E",1975,12,3]
[null,"E",1991,10,2]
[null,"E",1995,16,2]
[null,"F",1980,5,0]
[null,"F",1981,4,1]
[null,"…","…","…","…"]
[null,"…","…","…","…"]
[null,"…","…","…","…"]
[]
[]
[]
[]
[null,"Por favor llene la tabla 2 con la información de su empresa"]
[]
[]
[null,"Tabla 2: Listado de estratos"]
[]
[null,"Fabricante","Año de fabricación","Cantidad de equipos en uso y en desuso","Cantidad de equipos en desecho"]

{"sheet":"Sección C","index":2,"n_rows":34,"n_cols":7,"rows_kept":34,"cut":false,"hidden":false,"merged":[]}
[null,"Manual para la Gestión Integral de Bifenilos Policlorados - PCB"]
[null,"N° 3. Muestreo, toma de muestras, análisis e identificación de equipos y desechos contemplados en la normativa ambiental de PCB"]
[null,"Anexo 1. PROCEDIMIENTO PARA MUESTREO ESTADÍSTICO DE EQUIPOS"]
[]
[null,"Una los estratos que lo ameriten y posteriormente calcule el tamaño de la muestra"]
[]
[null,"Tabla 3 de ejemplo (Unificación de estratos)"]
[]
[]
[null,"Fabricante","Año de fabricación","Cantidad de equipos en uso y desuso","Cantidad de equipos en desecho","Muestra de equipos en uso y desuso","Muestra de equipos en desecho"]
[null,"E",1975,12,3,{"$f":"muestra_nohermeticos_usoydesuso(D11,E11)","v":9},{"$f":"muestra_nohermeticos_desecho(D11,E11)","v":3}]
[null,"E","posterior a 1990",26,4,{"$f":"muestra_nohermeticos_usoydesuso(D12,E12)","v":17},{"$f":"muestra_nohermeticos_desecho(D12,E12)","v":4}]
[null,"F",1980,5,0,{"$f":"muestra_nohermeticos_usoydesuso(D13,E13)","v":5},{"$f":"muestra_nohermeticos_desecho(D13,E13)","v":0}]
[null,"F",1981,4,1,{"$f":"muestra_nohermeticos_usoydesuso(D14,E14)","v":4},{"$f":"muestra_nohermeticos_desecho(D14,E14)","v":1}]
[null,"…","…","…","…","…","…"]
[null,"…","…","…","…","…","…"]
[null,"…","…","…","…","…","…"]
[]
[]
[]
[]
[null,"Por favor llene la tabla 3 con la información de su empresa"]
[]
[]
[null,"Tabla 3: Unificación de estratos"]
[]
[null,"Fabricante","Año de fabricación","Cantidad de equipos en uso y desuso","Cantidad de equipos en desecho","Muestra de equipos en uso y desuso","Muestra de equipos en desecho"]
[null,null,null,0,0,{"$f":"muestra_nohermeticos_usoydesuso(D28,E28)","v":0},{"$f":"muestra_nohermeticos_desecho(D28,E28)","v":0}]
[null,null,null,null,null,{"$f":"muestra_nohermeticos_usoydesuso(D29,E29)","v":0},{"$f":"muestra_nohermeticos_desecho(D29,E29)","v":0}]
[null,null,null,null,null,0,0]
[null,null,null,null,null,0,0]
[null,null,null,null,null,0,0]
[null,null,null,null,null,0,0]
[null,null,null,null,null,0,0]

{"sheet":"Sección D","index":3,"n_rows":25,"n_cols":6,"rows_kept":25,"cut":false,"hidden":false,"merged":[]}
[null,"Manual para la Gestión Integral de Bifenilos Policlorados - PCB"]
[null,"N° 3. Muestreo, toma de muestras, análisis e identificación de equipos y desechos contemplados en la normativa ambiental de PCB"]
[null,"Anexo 1. PROCEDIMIENTO PARA MUESTREO ESTADÍSTICO DE EQUIPOS"]
[]
[null,"Ajuste la identificación de las características de los equipos de acuerdo con la unificación de estratos"]
[]
[null,"Tabla 1a de ejemplo (Características de los equipos después de unificación)"]
[]
[]
[null,"Código identificación","Fabricante","Año de fabricación","Estado","Números aleatorios"]
[null,12,"E",1975,"Uso"]
[null,13,"E","Posterior a 1990","Desuso"]
[null,15,"E","Posterior a 1990","Uso"]
[null,19,"E","Posterior a 1990","Desecho"]
[null,"…","…","…","…","…"]
[null,"…","…","…","…","…"]
[null,"…","…","…","…","…"]
[]
[]
[null,"Por favor llene la tabla 1a con la información de su empresa"]
[]
[]
[null,"Tabla 1a: Características de los equipos después de unificación"]
[]
[null,"Código identificación","Fabricante","Año de fabricación","Estado","Números aleatorios"]